fUST/lending_fUST_20260111
["ID","MTS","AMOUNT","RATE_DAILY","PERIOD"]
[401252490,1768077041319,-1000.0,0.00013821,2]
[401252491,1768077041330,-1000.0,0.00013821,2]
[401252492,1768077041340,-500.0,0.00013821,2]
[401252493,1768077041349,-1000.0,0.00013821,2]
[401252494,1768077041359,-500.0,0.00013821,2]
[401252495,1768077041368,-1000.0,0.00013821,2]
[401252496,1768077041379,-667.6319526,0.00013821,2]
[401252497,1768077041388,-1000.0,0.00013821,2]
[401252498,1768077041398,-1000.0,0.00013821,2]
[401252499,1768077041409,-723.48736773,0.00013821,2]
[401252500,1768077041419,-1000.0,0.00013821,2]
[401252501,1768077041430,-1000.0,0.00013821,2]
[401252502,1768077041440,-1000.0,0.00013821,2]
[401252503,1768077041450,-1000.0,0.00013821,2]
[401252504,1768077041459,-1000.0,0.00013821,2]
[401252505,1768077041470,-33613.34015323,0.00013828,2]
[401252506,1768077041480,-377.1655679,0.00013941,2]
[401252507,1768077041489,-377.1655679,0.00013941,2]
[401252508,1768077041499,-402.75719944,0.00013968,2]
[401252509,1768077041509,-720.0,0.00014131,2]
[401252510,1768077041518,-1000.0,0.00014247,2]
[401252511,1768077041529,-1000.0,0.00014247,2]
[401252512,1768077041539,-1000.0,0.00014247,2]
[401252513,1768077041548,-1000.0,0.00014247,2]
[401252514,1768077041558,-500.0,0.00014247,2]
[401252515,1768077041568,-1000.0,0.00014247,2]
[401252516,1768077041577,-500.0,0.00014247,2]
[401252517,1768077041587,-1000.0,0.00014247,2]
[401252518,1768077041597,-1000.0,0.00014247,2]
[401252519,1768077041606,-1000.62599215,0.00014247,2]
[401252520,1768077041615,-1000.0,0.00014247,2]
[401252521,1768077041625,-500.0,0.00014247,2]
[401252522,1768077041635,-500.0,0.00014247,2]
[401252523,1768077041645,-1000.0,0.00014247,2]
[401252524,1768077041654,-391.0513895,0.00014368,2]
[401252525,1768077041664,-500.0,0.00014368,2]
[401252526,1768077041674,-500.0,0.00014368,2]
[401252527,1768077041685,-500.0,0.00014368,2]
[401252528,1768077041695,-5000.0,0.0001451,2]
[401252529,1768077041705,-1880.77930863,0.0001458,2]
[401252530,1768077041715,-1500.0,0.00014795,2]
[401252531,1768077041724,-988.64589349,0.00014795,2]
[401252532,1768077041735,-640.67728986,0.00014795,2]
[401252533,1768077041744,-1102.53259662,0.00014795,2]
[401252534,1768077041754,-100000.0,0.00014882,2]
[401252535,1768077041764,-171.0,0.00015,2]
[401252536,1768077041774,-587.0,0.00015039,2]
[401252537,1768077041783,-545.914549,0.00015068,2]
[401252538,1768077041793,-2351.0,0.00015116,2]
[401252539,1768077041802,-250.0,0.00015317,2]
[401252540,1768077041811,-514.12213244,0.00015342,2]
[401252541,1768077041821,-864.0,0.00015544,2]
[401252542,1768077041830,-1880.77930863,0.00015619,2]
[401252543,1768077041842,-464.19473834,0.00015968,2]
[401252544,1768077041851,-154.9098912,0.00016438,2]
[401252545,1768077041860,-260.11060349,0.00016438,2]
[401252546,1768077041870,-823.0,0.00016502,2]
[401252547,1768077041879,-1612.0,0.00016627,2]
[401252548,1768077041889,-1880.77930863,0.00016659,2]
[401252549,1768077041898,-12463.75391155,0.00017,2]
[401252550,1768077041907,-1000.0,0.00017098,2]
[401252551,1768077041917,-525.63227724,0.00017968,2]
[401252552,1768077041927,-539.0,0.00018106,2]
[401252553,1768077041936,-380.1,0.00018333,2]
[401252554,1768077041945,-545.914549,0.00018493,2]
[401252555,1768077041955,-1000.0,0.00018808,2]
[401252556,1768077041964,-244.0,0.00018808,2]
[401252557,1768077041973,-303.10001603,0.000189,2]
[401252558,1768077041982,-303.10001603,0.000189,2]
[401252559,1768077041992,-303.10001603,0.00019089,2]
[401252560,1768077042001,-303.10001603,0.00019089,2]
[401252561,1768077042011,-215.81,0.000192,2]
[401252562,1768077042020,-163.88,0.000192,2]
[401252563,1768077042030,-166.96,0.000192,2]
[401252564,1768077042039,-10523.09,0.000192,2]
[401252565,1768077042049,-167.58,0.000192,2]
[401252566,1768077042058,-303.10001603,0.00019278,2]
[401252567,1768077042067,-303.10001603,0.00019278,2]
[401252568,1768077042077,-303.10001603,0.00019467,2]
[401252569,1768077042089,-303.10001603,0.00019467,2]
[401252570,1768077042098,-303.10001603,0.00019656,2]
[401252571,1768077042108,-303.10001603,0.00019656,2]
[401252572,1768077042120,-454.65002405,0.00019845,4]
[401252573,1768077042130,-454.65002405,0.00019845,4]
[401252574,1768077042139,-587.06981614,0.00019968,2]
[401252575,1768077042149,-151.89012023,0.0002,2]
[401252576,1768077042158,-454.65002405,0.00020034,4]
[401252577,1768077042168,-454.65002405,0.00020034,4]
[401252578,1768077042177,-380.1,0.0002004,2]
[401252579,1768077042190,-454.65002405,0.00020223,4]
[401252580,1768077042200,-454.65002405,0.00020223,4]
[401252581,1768077042209,-454.65002405,0.00020412,4]
[401252582,1768077042219,-454.65002405,0.00020412,4]
[401252583,1768077042228,-1041.66666667,0.00020496,2]
[401252584,1768077042238,-160.0,0.00020496,2]
[401252585,1768077042247,-2001.305979,0.00020548,2]
[401252586,1768077042256,-454.65002405,0.00020601,4]
[401252587,1768077042266,-301.57435522,0.00020601,4]
[401252588,1768077042275,-1000.0,0.00020689,2]
[401252589,1768077042285,-492.0,0.00020689,2]
[401252590,1768077042294,-449.999999,0.00021,2]
[401252591,1768077042304,-380.1,0.00021747,2]
[401252592,1768077042315,-545.914549,0.00021918,2]
[401252593,1768077042324,-648.50735504,0.00021968,2]
[401252594,1768077042334,-320.9,0.000226,2]
[401252595,1768077042344,-1000.0,0.00022757,10]
[401252597,1768077042354,-791.0,0.00022757,10]
[401252599,1768077042363,-500.0,0.00023227,2]
[401252601,1768077042373,-380.1,0.00023454,2]
[401252603,1768077042382,-709.94489394,0.00023968,2]
[401252604,1768077042392,-215.81,0.000244,14]
[401252605,1768077042401,-500.0,0.00024658,2]
[401252606,1768077042411,-500.0,0.00024795,2]
[401252607,1768077042420,-407.88214472,0.00024832,2]
[401252608,1768077042429,-337988.424197,0.000249,2]
[401252609,1768077042438,-500.0,0.00024932,2]
[401252610,1768077042449,-1000.0,0.00025033,10]
[401252611,1768077042458,-1000.0,0.00025033,10]
[401252612,1768077042467,-500.0,0.00025069,2]
[401252613,1768077042477,-380.1,0.00025161,2]
[401252614,1768077042486,-150.1,0.00025202,2]
[401252615,1768077042497,-250.0,0.00025205,2]
[401252617,1768077042506,-500.0,0.00025206,2]
[401252619,1768077042516,-545.914549,0.00025342,2]
[401252620,1768077042525,-500.0,0.00025343,2]
[401252622,1768077042534,-500.0,0.0002548,2]
[401252624,1768077042544,-500.0,0.00025617,2]
[401252626,1768077042553,-350.0,0.00025753,2]
[401252628,1768077042563,-771.38243283,0.00025968,2]
[401252630,1768077042572,-146853.364095,0.00026,30]
[401252632,1768077042582,-285.4711241,0.00026055,19]
[401252634,1768077042591,-5000.0,0.00026105,2]
[401252636,1768077042600,-407.88214464,0.00026183,2]
[401252638,1768077042609,-10523.09,0.000262,2]
[401252640,1768077042620,-450.0,0.00026301,2]
[401252642,1768077042629,-550.0,0.00026849,2]
[401252644,1768077042638,-380.1,0.00026868,2]
[401252646,1768077042647,-1500.0,0.00027,2]
[401252648,1768077042656,-394.06366299,0.0002739,7]
[401252650,1768077042666,-450.0,0.00027397,5]
[401252652,1768077042675,-407.88214464,0.00027534,2]
[401252654,1768077042684,-1000.0,0.00027536,30]
[401252656,1768077042693,-1000.0,0.00027536,30]
[401252658,1768077042703,-579.0,0.00027536,30]
[401252660,1768077042712,-215.81,0.000276,14]
[401252662,1768077042721,-832.81997173,0.00027968,2]
[401252663,1768077042730,-15326.28285121,0.00028,2]
[401252666,1768077042740,-520.27726249,0.00028,2]
[401252668,1768077042749,-163.0,0.00028247,28]
[401252669,1768077042758,-380.1,0.00028575,3]
[401252672,1768077042768,-516.35781364,0.00028706,7]
[401252674,1768077042778,-545.914549,0.00028767,60]
[401252675,1768077042787,-407.88214464,0.00028885,2]
[401252677,1768077042796,-231.35629748,0.00029063,5]
[401252679,1768077042806,-5000.0,0.00029355,2]
[401252681,1768077042815,-180.55664476,0.00029587,3]
[401252684,1768077042825,-894.25751063,0.00029968,2]
[401252685,1768077042834,-300.0,0.00030137,5]
[401252687,1768077042843,-1226.64,0.00030137,2]
[401252689,1768077042852,-407.88214464,0.00030236,2]
[401252691,1768077042862,-380.1,0.00030282,4]
[401252693,1768077042871,-1000.0,0.0003029,30]
[401252695,1768077042880,-1000.0,0.0003029,30]
[401252697,1768077042889,-1000.0,0.0003029,30]
[401252699,1768077042899,-174.0,0.00030438,40]
[401252701,1768077042908,-258.38,0.00030937,2]
[401252703,1768077042917,-407.88214464,0.00031587,2]
[401252705,1768077042927,-300.0,0.00031589,2]
[401252707,1768077042935,-300.0,0.00031589,2]
[401252709,1768077042944,-300.0,0.00031589,2]
[401252711,1768077042954,-300.0,0.00031589,2]
[401252713,1768077042964,-955.69504953,0.00031968,2]
[401252716,1768077042973,-380.1,0.00031989,5]
[401252719,1768077042982,-91275.06139315,0.00031998,2]
[401252721,1768077042991,-320.9,0.000323,2]
[401252723,1768077043001,-1000.0,0.000324,120]
[401252725,1768077043010,-5000.0,0.00032605,2]
[401252727,1768077043019,-999.0,0.00032876,120]
[401252728,1768077043031,-450.0,0.00032877,5]
[401252730,1768077043039,-215.81,0.000329,30]
[401252733,1768077043050,-407.88214464,0.00032938,2]
[401252735,1768077043059,-1000.0,0.00033319,30]
[401252737,1768077043068,-1000.0,0.00033319,30]
[401252739,1768077043077,-1000.0,0.00033319,30]
[401252741,1768077043086,-715.0,0.00033319,30]
[401252743,1768077043095,-10523.09,0.000334,14]
[401252745,1768077043104,-380.1,0.00033696,6]
[401252747,1768077043118,-210.0,0.00033699,5]
[401252749,1768077043128,-295.0,0.00033722,120]
[401252751,1768077043138,-296.0,0.00033725,7]
[401252753,1768077043147,-170.0,0.00033726,63]
[401252755,1768077043156,-295.0,0.00033863,2]
[401252757,1768077043166,-295.0,0.00033906,7]
[401252759,1768077043175,-1017.13258843,0.00033968,120]
[401252761,1768077043184,-999.0,0.00033972,120]
[401252763,1768077043193,-296.0,0.00033976,2]
[401252765,1768077043203,-295.0,0.00034224,2]
[401252766,1768077043212,-384.52,0.00034273,60]
[401252767,1768077043221,-407.88214464,0.00034289,2]
[401252769,1768077043231,-384.52,0.00034373,60]
[401252771,1768077043239,-295.0,0.0003445,2]
[401252773,1768077043248,-384.52,0.00034473,60]
[401252775,1768077043258,-270.0,0.00034521,5]
[401252777,1768077043268,-384.52,0.00034573,60]
[401252779,1768077043278,-384.52,0.00034673,60]
[401252781,1768077043288,-384.52,0.00034773,60]
[401252783,1768077043297,-168.0,0.00034806,2]
[401252785,1768077043307,-295.0,0.00034863,2]
[401252787,1768077043316,-384.52,0.00034873,60]
[401252788,1768077043325,-384.52,0.00034973,60]
[401252790,1768077043334,-324.5,0.00035005,30]
[401252792,1768077043345,-531.0,0.00035005,30]
[401252794,1768077043355,-296.0,0.00035063,120]
[401252796,1768077043364,-999.0,0.00035068,120]
[401252798,1768077043373,-384.52,0.00035073,60]
[401252800,1768077043382,-5058.79910613,0.00035132,47]
[401252802,1768077043392,-384.52,0.00035173,60]
[401252804,1768077043401,-295.0,0.00035205,7]
[401252806,1768077043410,-151.0,0.00035222,2]
[401252808,1768077043420,-151.0,0.00035222,2]
[401252810,1768077043428,-30000.0,0.00035222,2]
[401252812,1768077043437,-151.0,0.00035222,2]
[401252813,1768077043447,-151.0,0.00035222,2]
[401252815,1768077043457,-151.0,0.00035222,2]
[401252817,1768077043466,-151.0,0.00035222,2]
[401252819,1768077043475,-151.0,0.00035222,2]
[401252821,1768077043484,-151.0,0.00035222,2]
[401252823,1768077043493,-151.0,0.00035222,2]
[401252825,1768077043503,-151.0,0.00035222,2]
[401252827,1768077043512,-151.0,0.00035222,2]
[401252829,1768077043523,-151.0,0.00035222,2]
[401252831,1768077043532,-151.0,0.00035222,2]
[401252833,1768077043541,-151.0,0.00035222,2]
[401252835,1768077043550,-151.0,0.00035222,2]
[401252837,1768077043560,-151.0,0.00035222,2]
[401252839,1768077043569,-151.0,0.00035222,2]
[401252841,1768077043579,-151.0,0.00035222,2]
[401252843,1768077043588,-151.0,0.00035222,2]
[401252845,1768077043597,-151.0,0.00035222,2]
[401252846,1768077043606,-384.52,0.00035273,60]
[401252848,1768077043616,-295.0,0.00035331,120]
[401252850,1768077043626,-330.0,0.00035342,5]
[401252852,1768077043635,-384.52,0.00035373,60]
[401252854,1768077043645,-215.81,0.000354,30]
[401252856,1768077043654,-380.1,0.00035403,30]
[401252858,1768077043663,-384.52,0.00035473,60]
[401252860,1768077043673,-297.0,0.00035493,2]
[401252862,1768077043682,-384.52,0.00035573,60]
[401252864,1768077043691,-500.0,0.00035616,30]
[401252866,1768077043701,-334.34878739,0.00035616,7]
[401252869,1768077043711,-750.0,0.00035616,5]
[401252870,1768077043720,-407.88214464,0.0003564,2]
[401252872,1768077043730,-295.0,0.00035655,2]
[401252875,1768077043739,-384.52,0.00035673,60]
[401252878,1768077043749,-389.33209091,0.00035713,2]
[401252881,1768077043758,-295.0,0.00035724,7]
[401252883,1768077043767,-295.0,0.00035735,7]
[401252884,1768077043776,-5055.88306003,0.0003577,2]
[401252885,1768077043786,-384.52,0.00035773,60]
[401252886,1768077043796,-297.0,0.00035806,7]
[401252887,1768077043806,-389.33209091,0.00035813,2]
[401252888,1768077043815,-5000.0,0.00035855,3]
[401252889,1768077043825,-296.0,0.00035872,2]
[401252890,1768077043834,-384.52,0.00035873,60]
[401252891,1768077043843,-381075.25396554,0.00035937,4]
[401252892,1768077043952,-1078.57012733,0.00035968,120]
[401252893,1768077043963,-384.52,0.00035973,60]
[401252894,1768077043972,-20844.54809533,0.00036,120]
[401252895,1768077043982,-389.33209091,0.00036013,2]
[401252896,1768077043991,-295.0,0.00036036,7]
[401252897,1768077044001,-384.52,0.00036073,60]
[401252898,1768077044010,-295.0,0.0003611,2]
[401252899,1768077044019,-389.33209091,0.00036113,2]
[401252900,1768077044028,-999.0,0.00036164,120]
[401252901,1768077044038,-500.0,0.00036164,30]
[401252902,1768077044048,-180.020001,0.00036164,5]
[401252903,1768077044058,-384.52,0.00036173,60]
[401252904,1768077044068,-389.33209091,0.00036213,2]
[401252906,1768077044083,-295.0,0.00036239,120]
[401252908,1768077044095,-384.52,0.00036273,60]
[401252910,1768077044104,-389.33209091,0.00036313,2]
[401252912,1768077044117,-384.52,0.00036373,60]
[401252914,1768077044127,-389.33209091,0.00036413,2]
[401252916,1768077044136,-800.0,0.00036431,7]
[401252918,1768077044147,-384.52,0.00036473,60]
[401252920,1768077044168,-389.33209091,0.00036513,2]
[401252922,1768077044180,-299.0,0.00036513,2]
[401252923,1768077044191,-384.52,0.00036573,60]
[401252925,1768077044201,-10523.09,0.000366,14]
[401252927,1768077044211,-10000.0,0.00036612,2]
[401252930,1768077044221,-389.33209091,0.00036613,2]
[401252932,1768077044232,-1000.0,0.00036651,30]
[401252934,1768077044242,-1000.0,0.00036651,30]
[401252935,1768077044253,-1000.0,0.00036651,30]
[401252937,1768077044262,-384.52,0.00036673,60]
[401252939,1768077044271,-295.0,0.00036683,2]
[401252941,1768077044281,-163.471192,0.00036712,31]
[401252943,1768077044290,-151.0,0.00036712,31]
[401252945,1768077044299,-151.0,0.00036712,31]
[401252947,1768077044309,-151.0,0.00036712,31]
[401252949,1768077044318,-151.0,0.00036712,31]
[401252951,1768077044328,-500.0,0.00036712,2]
[401252953,1768077044338,-500.0,0.00036712,30]
[401252955,1768077044347,-500.0,0.00036712,30]
[401252957,1768077044356,-500.0,0.00036712,30]
[401252959,1768077044366,-500.0,0.00036712,30]
[401252961,1768077044375,-500.17912256,0.00036712,30]
[401252963,1768077044384,-151.0,0.00036712,28]
[401252965,1768077044394,-315.18853,0.00036712,31]
[401252967,1768077044402,-151.0,0.00036712,28]
[401252969,1768077044412,-315.18853,0.00036712,31]
[401252971,1768077044421,-315.18853,0.00036712,31]
[401252973,1768077044430,-315.18853,0.00036712,31]
[401252975,1768077044439,-151.0,0.00036712,31]
[401252977,1768077044448,-151.0,0.00036712,31]
[401252979,1768077044457,-160.29273,0.00036712,31]
[401252981,1768077044467,-479.331389,0.00036712,31]
[401252983,1768077044477,-479.331389,0.00036712,31]
[401252985,1768077044486,-479.331389,0.00036712,31]
[401252987,1768077044496,-2479.36,0.00036712,30]
[401252989,1768077044505,-2479.36,0.00036712,30]
[401252991,1768077044515,-2479.36,0.00036712,30]
[401252993,1768077044524,-2479.36,0.00036712,30]
[401252995,1768077044534,-2479.36,0.00036712,30]
[401252997,1768077044544,-2479.36,0.00036712,30]
[401252999,1768077044553,-2479.36,0.00036712,30]
[401253001,1768077044562,-2479.36,0.00036712,30]
[401253003,1768077044572,-2479.36,0.00036712,30]
[401253005,1768077044582,-2479.36,0.00036712,30]
[401253007,1768077044591,-2479.36,0.00036712,30]
[401253009,1768077044600,-2479.36,0.00036712,30]
[401253011,1768077044610,-2479.36,0.00036712,30]
[401253013,1768077044619,-2479.36,0.00036712,30]
[401253015,1768077044629,-2479.36,0.00036712,30]
[401253017,1768077044638,-2479.36,0.00036712,30]
[401253019,1768077044647,-2479.36,0.00036712,30]
[401253021,1768077044656,-2479.36,0.00036712,30]
[401253023,1768077044665,-2479.36,0.00036712,30]
[401253025,1768077044674,-2479.36,0.00036712,30]
[401253027,1768077044683,-2479.36,0.00036712,30]
[401253029,1768077044692,-2479.36,0.00036712,30]
[401253031,1768077044702,-2479.36,0.00036712,30]
[401253033,1768077044711,-2479.42,0.00036712,30]
[401253035,1768077044721,-151.895159,0.00036712,31]
[401253037,1768077044730,-151.895159,0.00036712,31]
[401253039,1768077044740,-151.895159,0.00036712,31]
[401253041,1768077044749,-151.0,0.00036712,31]
[401253043,1768077044758,-240.800018,0.00036712,31]
[401253045,1768077044767,-151.0,0.00036712,31]
[401253047,1768077044775,-151.895159,0.00036712,31]
[401253049,1768077044784,-151.0,0.00036712,31]
[401253051,1768077044793,-16189.62,0.00036712,30]
[401253053,1768077044802,-16189.62,0.00036712,30]
[401253055,1768077044811,-16189.62,0.00036712,30]
[401253058,1768077044821,-16189.62,0.00036712,30]
[401253059,1768077044830,-16189.62,0.00036712,30]
[401253061,1768077044839,-16189.62,0.00036712,30]
[401253064,1768077044850,-16189.62,0.00036712,30]
[401253065,1768077044859,-16189.62,0.00036712,30]
[401253067,1768077044868,-16189.62,0.00036712,30]
[401253069,1768077044878,-16189.62,0.00036712,30]
[401253071,1768077044889,-16189.62,0.00036712,30]
[401253073,1768077044898,-151.366366,0.00036712,2]
[401253075,1768077044908,-16189.62,0.00036712,30]
[401253077,1768077044917,-16189.62,0.00036712,30]
[401253079,1768077044926,-16189.62,0.00036712,30]
[401253081,1768077044935,-16189.62,0.00036712,30]
[401253083,1768077044945,-16189.62,0.00036712,30]
[401253085,1768077044956,-16189.62,0.00036712,30]
[401253087,1768077044966,-16189.62,0.00036712,30]
[401253089,1768077044975,-16189.62,0.00036712,30]
[401253091,1768077044984,-16189.62,0.00036712,30]
[401253093,1768077044993,-16189.62,0.00036712,30]
[401253094,1768077045002,-16189.62,0.00036712,30]
[401253096,1768077045011,-16189.62,0.00036712,30]
[401253098,1768077045020,-16189.70100427,0.00036712,30]
[401253100,1768077045030,-2192.87,0.00036712,30]
[401253103,1768077045039,-2192.87,0.00036712,30]
[401253105,1768077045048,-2192.87,0.00036712,30]
[401253107,1768077045057,-2192.87,0.00036712,30]
[401253109,1768077045066,-2192.87,0.00036712,30]
[401253111,1768077045075,-2192.87,0.00036712,30]
[401253113,1768077045083,-2192.87,0.00036712,30]
[401253115,1768077045095,-2192.87,0.00036712,30]
[401253117,1768077045106,-2192.87,0.00036712,30]
[401253119,1768077045116,-2192.87,0.00036712,30]
[401253121,1768077045126,-2192.87,0.00036712,30]
[401253123,1768077045136,-2192.87,0.00036712,30]
[401253125,1768077045146,-2192.87,0.00036712,30]
[401253127,1768077045156,-2192.87,0.00036712,30]
[401253129,1768077045165,-2192.87,0.00036712,30]
[401253131,1768077045175,-2192.87,0.00036712,30]
[401253133,1768077045185,-2192.87,0.00036712,30]
[401253135,1768077045195,-2192.87,0.00036712,30]
[401253136,1768077045204,-2192.87,0.00036712,30]
[401253139,1768077045214,-2192.87,0.00036712,30]
[401253140,1768077045223,-2192.87,0.00036712,30]
[401253143,1768077045232,-2192.87,0.00036712,30]
[401253145,1768077045242,-2192.87,0.00036712,30]
[401253146,1768077045251,-2192.89,0.00036712,30]
[401253148,1768077045260,-2195.79,0.00036712,30]
[401253150,1768077045269,-2195.79,0.00036712,30]
[401253152,1768077045278,-2195.79,0.00036712,30]
[401253155,1768077045288,-2195.79,0.00036712,30]
[401253156,1768077045297,-26257.46,0.00036712,30]
[401253159,1768077045307,-2195.79,0.00036712,30]
[401253161,1768077045317,-26257.46,0.00036712,30]
[401253163,1768077045326,-2195.79,0.00036712,30]
[401253164,1768077045336,-26257.46,0.00036712,30]
[401253166,1768077045345,-2195.79,0.00036712,30]
[401253168,1768077045355,-26257.46,0.00036712,30]
[401253170,1768077045365,-2195.79,0.00036712,30]
[401253172,1768077045375,-26257.46,0.00036712,30]
[401253175,1768077045385,-2195.79,0.00036712,30]
[401253176,1768077045394,-26257.46,0.00036712,30]
[401253178,1768077045403,-2195.79,0.00036712,30]
[401253180,1768077045413,-26257.46,0.00036712,30]
[401253182,1768077045423,-2195.79,0.00036712,30]
[401253184,1768077045433,-26257.46,0.00036712,30]
[401253186,1768077045442,-2195.79,0.00036712,30]
[401253188,1768077045453,-26257.46,0.00036712,30]
[401253191,1768077045463,-2195.79,0.00036712,30]
[401253193,1768077045473,-26257.46,0.00036712,30]
[401253195,1768077045483,-2195.79,0.00036712,30]
[401253197,1768077045493,-26257.46,0.00036712,30]
[401253199,1768077045503,-2195.79,0.00036712,30]
[401253201,1768077045512,-26257.46,0.00036712,30]
[401253203,1768077045523,-2195.79,0.00036712,30]
[401253205,1768077045532,-26257.46,0.00036712,30]
[401253207,1768077045542,-2195.79,0.00036712,30]
[401253209,1768077045552,-26257.46,0.00036712,30]
[401253211,1768077045561,-26257.46,0.00036712,30]
[401253213,1768077045571,-2195.79,0.00036712,30]
[401253215,1768077045581,-26257.46,0.00036712,30]
[401253217,1768077045591,-2195.79,0.00036712,30]
[401253219,1768077045601,-241.15003758,0.00036712,120]
[401253221,1768077045611,-26257.46,0.00036712,30]
[401253223,1768077045621,-2195.79,0.00036712,30]
[401253225,1768077045631,-26257.46,0.00036712,30]
[401253227,1768077045641,-2195.79,0.00036712,30]
[401253229,1768077045651,-26257.46,0.00036712,30]
[401253231,1768077045661,-2195.79,0.00036712,30]
[401253233,1768077045671,-26257.46,0.00036712,30]
[401253235,1768077045681,-2195.79,0.00036712,30]
[401253237,1768077045690,-26257.46,0.00036712,30]
[401253239,1768077045699,-2195.88,0.00036712,30]
[401253241,1768077045708,-26257.46,0.00036712,30]
[401253243,1768077045717,-26257.46,0.00036712,30]
[401253245,1768077045726,-26257.54452659,0.00036712,30]
[401253247,1768077045735,-151.0,0.00036712,31]
[401253249,1768077045745,-151.0,0.00036712,31]
[401253251,1768077045755,-151.0,0.00036712,31]
[401253253,1768077045764,-171.590858,0.00036712,31]
[401253255,1768077045774,-245.445707,0.00036712,31]
[401253257,1768077045783,-245.445707,0.00036712,31]
[401253259,1768077045793,-245.445707,0.00036712,31]
[401253261,1768077045803,-245.445707,0.00036712,31]
[401253263,1768077045812,-202.167956,0.00036712,31]
[401253265,1768077045823,-151.0,0.00036712,31]
[401253267,1768077045839,-5048.48,0.00036712,30]
[401253269,1768077045849,-5048.48,0.00036712,30]
[401253271,1768077045858,-5048.48,0.00036712,30]
[401253273,1768077045868,-5048.48,0.00036712,30]
[401253275,1768077045877,-5048.48,0.00036712,30]
[401253277,1768077045887,-5048.48,0.00036712,30]
[401253280,1768077045905,-5048.48,0.00036712,30]
[401253283,1768077045917,-5048.48,0.00036712,30]
[401253285,1768077045927,-5048.48,0.00036712,30]
[401253286,1768077045936,-5048.48,0.00036712,30]
[401253289,1768077045947,-5048.48,0.00036712,30]
[401253291,1768077045958,-5048.48,0.00036712,30]
[401253293,1768077045967,-5048.48,0.00036712,30]
[401253295,1768077045977,-5048.48,0.00036712,30]
[401253297,1768077045986,-5048.48,0.00036712,30]
[401253298,1768077045996,-5048.48,0.00036712,30]
[401253300,1768077046006,-5048.48,0.00036712,30]
[401253302,1768077046015,-5048.48,0.00036712,30]
[401253304,1768077046024,-5048.48,0.00036712,30]
[401253306,1768077046035,-5048.48,0.00036712,30]
[401253308,1768077046046,-5048.48,0.00036712,30]
[401253311,1768077046056,-5048.48,0.00036712,30]
[401253313,1768077046066,-5048.48,0.00036712,30]
[401253315,1768077046076,-5048.65,0.00036712,30]
[401253317,1768077046085,-151.0,0.00036712,31]
[401253318,1768077046095,-151.0,0.00036712,31]
[401253321,1768077046104,-191.532893,0.00036712,31]
[401253322,1768077046117,-500.0,0.00036712,2]
[401253325,1768077046128,-500.0,0.00036712,2]
[401253327,1768077046138,-500.0,0.00036712,2]
[401253329,1768077046149,-500.0,0.00036712,2]
[401253330,1768077046160,-500.0,0.00036712,2]
[401253333,1768077046171,-151.0,0.00036712,31]
[401253335,1768077046181,-500.0,0.00036712,2]
[401253336,1768077046191,-500.0,0.00036712,2]
[401253338,1768077046200,-500.0,0.00036712,2]
[401253340,1768077046210,-500.0,0.00036712,2]
[401253342,1768077046219,-500.0,0.00036712,2]
[401253345,1768077046230,-500.0,0.00036712,2]
[401253346,1768077046239,-500.0,0.00036712,2]
[401253348,1768077046249,-500.0,0.00036712,2]